bitfinex-derivatives/quotes_SOLF0:USTF0_20241120
["timestamp","ask_amount","ask_price","bid_price","bid_amount"]
[1732061249003,10.19683965,237.65,237.6,2.1008]
[1732061250197,10.19683965,237.65,237.61,2.1007]
[1732061251104,2.1005,237.64,237.59,2.1009]
[1732061252400,12.29723965,237.65,237.59,2.1009]
[1732061252597,12.29723965,237.65,237.53,2.2]
[1732061252799,12.29723965,237.65,237.6,2.1008]
[1732061253696,10.19683965,237.65,237.53,2.2]
[1732061253897,12.62,237.68,237.61,2.1007]
[1732061253898,2.1003,237.67,237.61,2.1007]
[1732061254095,2.1003,237.67,237.53,12.39683965]
[1732061254293,2.1003,237.67,237.61,2.1007]
[1732061254593,12.63,237.79,237.61,2.1007]
[1732061254594,12.62,237.74,237.63,10.19683965]
[1732061254792,10.19683965,237.76,237.63,10.19683965]
[1732061254793,3.27627334,237.75,237.63,10.19683965]
[1732061255401,1.2225,237.75,237.63,10.19683965]
[1732061255799,3.3221,237.75,237.63,10.19683965]
[1732061258206,2.0996,237.75,237.68,2.1001]
[1732061258602,6.51780551,237.74,237.68,2.1001]
[1732061259306,6.51780551,237.74,237.69,2.1]
[1732061259703,2.0996,237.75,237.69,2.1]
[1732061259905,6.51780551,237.74,237.69,2.1]
[1732061260205,6.51780551,237.74,237.7,2.1]
[1732061260602,6.51780551,237.74,237.66,6.51780551]
[1732061261002,6.51780551,237.72,237.66,6.51780551]
[1732061261502,6.51780551,237.72,237.68,2.1001]
[1732061261901,6.51780551,237.72,237.67,2.1002]
[1732061262299,6.51780551,237.72,237.64,6.51780551]
[1732061262499,6.51780551,237.74,237.66,6.51780551]
[1732061262703,2.0994,237.76,237.69,2.1]
[1732061262903,1.2637,237.79,237.7,6.51780551]
[1732061263109,6.51780551,237.78,237.7,6.51780551]
[1732061263408,12.62,237.82,237.73,8.61750551]
[1732061263604,6.51780551,237.81,237.73,6.51780551]
[1732061263801,6.51780551,237.79,237.71,6.51780551]
[1732061264006,8.61700551,237.79,237.73,2.0996]
[1732061264206,6.51780551,237.77,237.71,6.51780551]
[1732061264412,6.51780551,237.77,237.69,6.51780551]
[1732061264708,6.51780551,237.75,237.69,2.18]
[1732061265109,6.51780551,237.73,237.69,2.18]
[1732061265405,2.18,237.85,237.62,3.6749]
[1732061265406,6.51780551,237.72,237.65,8.69780551]
[1732061265602,6.51780551,237.72,237.65,6.51780551]
[1732061266307,6.51780551,237.7,237.64,2.18]
[1732061266707,10.18668409,237.74,237.64,2.18]
[1732061267004,10.18668409,237.74,237.62,3.6749]
[1732061267005,2.0998,237.72,237.66,2.1003]
[1732061267205,10.18668409,237.74,237.63,2.18]
[1732061268908,2.0997,237.73,237.66,2.1003]
[1732061270509,10.18668409,237.74,237.66,2.1003]
[1732061270510,2.0998,237.72,237.66,2.1003]
[1732061270708,2.0998,237.72,237.62,3.6749]
[1732061270709,10.18668409,237.68,237.49,15.61885655]
[1732061271015,234.41532082,237.78,237.51,10.18668409]
[1732061271016,10.18668409,237.65,237.51,10.18668409]
[1732061271314,2.1006,237.64,237.51,10.18668409]
[1732061271518,10.18668409,237.65,237.51,10.18668409]
[1732061271817,12.28708409,237.65,237.55,2.1013]
[1732061272110,10.18668409,237.65,237.51,10.18668409]
[1732061272511,12.28738409,237.62,237.53,2.1014]
[1732061272907,12.28738409,237.62,237.53,4.2814]
[1732061273717,10.18668409,237.59,237.51,2.18]
[1732061274115,12.28758409,237.59,237.5,4.6292]
[1732061274313,10.18668409,237.59,237.5,4.6292]
[1732061274716,10.18668409,237.59,237.5,2.4492]
[1732061274912,10.18668409,237.59,237.5,1.1712]
[1732061275419,10.18668409,237.56,237.49,15.61885655]
[1732061275616,12.62,237.58,237.49,15.61885655]
[1732061275813,10.18668409,237.55,237.49,15.61885655]
[1732061277120,2.1014,237.54,237.49,15.61885655]
[1732061277313,10.18668409,237.56,237.49,15.61885655]
[1732061277619,2.18,237.58,237.49,15.61885655]
[1732061277813,2.1017,237.51,237.49,15.61885655]
[1732061278013,2.18,237.57,237.49,15.61885655]
[1732061278213,10.18668409,237.53,237.49,15.61885655]
[1732061278523,2.1017,237.5,237.49,15.61885655]
[1732061278719,10.18668409,237.51,237.42,1.1712]
[1732061280121,10.18668409,237.51,237.43,2.1024]
[1732061280620,16.95369502,237.55,237.43,10.18668409]
[1732061281520,16.95369502,237.55,237.46,2.1021]
[1732061281521,2.1017,237.51,237.46,2.1021]
[1732061281915,2.1017,237.51,237.43,10.18668409]
[1732061282121,2.1017,237.51,237.44,2.1022]
[1732061282521,2.1015,237.54,237.48,2.1019]
[1732061284916,2.1015,237.53,237.48,2.1019]
[1732061285323,10.18668409,237.57,237.46,2.102]
[1732061285521,10.18668409,237.57,237.43,2.18]
[1732061285522,22.80668409,237.57,237.43,2.18]
[1732061285819,22.80668409,237.57,237.42,1.1712]
[1732061285820,10.18668409,237.54,237.42,1.1712]
[1732061286022,2.1019,237.48,237.43,2.1023]
[1732061286223,2.1019,237.48,237.42,1.1712]
[1732061287519,2.1018,237.5,237.42,1.1712]
[1732061287827,2.1018,237.5,237.43,2.1024]
[1732061288023,2.18,237.53,237.42,1.1712]
[1732061288329,2.1019,237.49,237.42,3.3512]
[1732061288519,2.10739678,237.54,237.46,2.1021]
[1732061288720,2.5429,237.58,237.43,10.18668409]
[1732061288919,4.7229,237.58,237.43,10.18668409]
[1732061289122,4.7229,237.58,237.47,2.102]
[1732061289322,4.7229,237.58,237.43,10.18668409]
[1732061289623,10.18668409,237.57,237.43,10.18668409]
[1732061289824,2.1015,237.53,237.47,2.102]
[1732061290226,10.18668409,237.57,237.43,10.18668409]
[1732061290428,2.1014,237.54,237.43,10.18668409]
[1732061290722,10.18668409,237.57,237.43,10.18668409]
[1732061291223,2.1016,237.52,237.45,2.1022]
[1732061291822,2.07020248,237.56,237.45,4.2822]
[1732061292129,2.1017,237.51,237.45,4.2822]
[1732061292925,2.05186702,237.55,237.45,4.2822]
[1732061293129,10.18668409,237.57,237.45,2.18]
[1732061293426,2.5429,237.58,237.49,2.1018]
[1732061293427,4.7229,237.58,237.49,2.1018]
[1732061293627,2.1013,237.55,237.49,2.1018]
[1732061294126,2.5429,237.58,237.46,10.18668409]
[1732061294322,2.18,237.62,237.49,10.18668409]
[1732061294922,2.18,237.62,237.52,2.1015]
[1732061295625,2.1009,237.59,237.52,2.1015]
[1732061296520,2.1009,237.59,237.53,2.1015]
[1732061297724,2.1009,237.6,237.51,2.18]
[1732061298931,2.1009,237.6,237.54,2.1013]
[1732061299927,2.1009,237.6,237.51,2.18]
[1732061301232,2.1009,237.6,237.54,2.1013]
[1732061302734,6.52576702,237.59,237.54,2.1013]
[1732061303632,6.52576702,237.59,237.52,6.52576702]
[1732061303828,8.62656702,237.61,237.55,2.1013]
[1732061304131,6.52576702,237.61,237.55,2.1013]
[1732061304330,1.1694,237.65,237.51,2.18]
[1732061304331,2.1006,237.64,237.59,2.1009]
[1732061304530,6.52576702,237.64,237.56,6.52576702]
[1732061304827,6.52576702,237.6,237.52,7.81486702]
[1732061305032,8.62686702,237.6,237.55,2.1015]
[1732061305230,6.52576702,237.6,237.52,7.81486702]
[1732061305625,6.52576702,237.6,237.33,4.2069]
[1732061305626,6.52576702,237.53,237.33,4.2069]
[1732061305936,2.18,237.52,237.39,6.52576702]
[1732061306124,6.52576702,237.48,237.39,6.52576702]
[1732061306325,2.18,237.52,237.43,6.52576702]
[1732061306528,8.70576702,237.52,237.43,6.52576702]
[1732061306728,2.18,237.52,237.4,10.2036868]
[1732061306926,4.2818,237.52,237.44,2.1024]
[1732061308831,4.2818,237.52,237.4,10.2036868]
[1732061308832,2.18,237.52,237.45,2.1023]
[1732061309637,231.96362082,237.57,237.51,2.1019]
[1732061310041,2.18,237.57,237.51,2.1019]
[1732061310238,2.18,237.57,237.45,1.2808]
[1732061310542,2.18,237.57,237.52,2.1018]
[1732061312242,2.1014,237.56,237.5,2.1019]
[1732061312937,10.2036868,237.55,237.5,2.1019]
[1732061314437,10.2036868,237.55,237.45,1.2808]
[1732061314638,2.1014,237.56,237.51,2.1019]
[1732061314831,2.1014,237.56,237.45,1.2808]
[1732061314832,8.89492153,237.56,237.46,10.2036868]
[1732061315031,231.96362082,237.59,237.54,2.1015]
[1732061315338,8.89405756,237.58,237.46,10.2036868]
[1732061316040,8.89405756,237.57,237.46,10.2036868]
[1732061316241,2.1012,237.59,237.46,10.2036868]
[1732061316439,2.1012,237.58,237.52,2.1018]
[1732061318040,2.05929845,237.57,237.52,2.1018]
[1732061318341,10.96595233,237.57,237.52,2.1018]
[1732061318649,8.90665388,237.56,237.52,2.1018]
[1732061318838,2.05929845,237.57,237.52,2.1018]
[1732061319144,2.05929845,237.57,237.45,1.2808]
[1732061319145,2.1015,237.56,237.5,2.1019]
[1732061319332,4.2229633,237.56,237.5,2.1019]
[1732061319534,8.9146364,237.55,237.45,1.2808]
[1732061319840,8.9146364,237.54,237.45,1.2808]
[1732061320037,8.9146364,237.53,237.45,1.2808]
[1732061320239,2.1015,237.56,237.45,1.2808]
[1732061320444,4.20782201,237.56,237.45,1.2808]
[1732061320646,8.91781207,237.55,237.45,1.2808]
[1732061320945,11.00499717,237.54,237.45,1.2808]
[1732061321245,2.1015,237.56,237.45,1.2808]
[1732061321246,8.91781207,237.53,237.5,2.1019]
[1732061321544,4.18616155,237.56,237.5,2.1019]
[1732061321742,8.9176419,237.55,237.5,2.1019]
[1732061323442,8.9176419,237.55,237.51,2.1018]
[1732061323639,8.9176419,237.54,237.46,10.2036868]
[1732061323841,2.18,237.58,237.46,10.2036868]
[1732061324046,8.91707084,237.57,237.53,2.1017]
[1732061324445,11.0102324,237.57,237.53,2.1017]
[1732061327557,11.0102324,237.57,237.46,10.2036868]
[1732061328152,11.0102324,237.57,237.52,2.1018]
[1732061328646,11.0102324,237.57,237.46,10.2036868]
[1732061328852,11.0102324,237.57,237.53,2.1017]
[1732061330650,6.52832404,237.55,237.53,2.1017]
[1732061332554,2.09316156,237.57,237.55,2.1015]
[1732061332758,21.14760239,237.59,237.55,2.1015]
[1732061333054,15.4493523,237.58,237.51,6.52832404]
[1732061333253,8.92102826,237.57,237.54,2.1016]
[1732061335357,8.92102826,237.57,237.45,1.2808]
[1732061335358,6.52832404,237.56,237.45,1.2808]
[1732061335552,6.52832404,237.52,237.45,7.80912404]
[1732061336061,6.52832404,237.54,237.51,2.1019]
[1732061336658,8.92288711,237.53,237.51,2.1019]
[1732061337758,2.1021,237.49,237.43,2.1025]
[1732061337956,6.52832404,237.46,237.43,2.1025]
[1732061340763,10.20817167,237.5,237.43,2.1025]
[1732061340965,8.92064994,237.49,237.43,2.1025]
[1732061341354,11.02274994,237.49,237.43,2.1025]
[1732061342359,10.20817167,237.47,237.36,2.18]
[1732061342566,8.92064994,237.46,237.36,2.18]
[1732061342760,2.1025,237.45,237.38,2.1029]
[1732061342965,2.1025,237.45,237.34,2.18]
[1732061343461,8.91676684,237.46,237.36,2.1031]
[1732061343462,2.1026,237.43,237.36,2.1031]
[1732061343664,2.1026,237.43,237.34,2.18]
[1732061344058,2.1026,237.43,237.36,2.1032]
[1732061344260,2.1027,237.42,237.31,5.8599]
[1732061344459,2.12425084,237.42,237.31,5.8599]
[1732061344662,10.20817167,237.44,237.31,5.8599]
[1732061344864,2.1027,237.42,237.35,2.1033]
[1732061345065,2.10554955,237.42,237.31,5.8599]
[1732061345265,10.20817167,237.44,237.32,10.20817167]
[1732061345565,12.62,237.51,237.38,10.20817167]
[1732061345863,2.18,237.49,237.38,10.20817167]
[1732061346064,8.90901414,237.48,237.38,10.20817167]
[1732061346257,11.01111414,237.48,237.38,10.20817167]
[1732061347263,11.01111414,237.48,237.41,2.1027]
[1732061347863,8.90901414,237.48,237.41,2.1027]
[1732061348167,8.90901414,237.48,237.39,2.1028]
[1732061348359,8.90901414,237.48,237.37,2.18]
[1732061348563,2.1024,237.45,237.37,2.18]
[1732061348868,2.1024,237.45,237.32,10.20817167]
[1732061348869,2.1024,237.45,237.33,2.18]
[1732061349067,10.20817167,237.47,237.36,2.1031]
[1732061349068,2.1027,237.43,237.36,2.1031]
[1732061349364,8.90678213,237.46,237.32,10.20817167]
[1732061349760,2.1026,237.43,237.37,2.1031]
[1732061349966,2.1026,237.43,237.32,10.20817167]
[1732061350566,2.1027,237.42,237.36,2.1032]
[1732061350762,233.77125735,237.52,237.31,3.6799]
[1732061350763,2.18,237.43,237.31,3.6799]
[1732061350967,4.23376738,237.43,237.31,3.6799]
[1732061351667,16.85376738,237.43,237.33,2.1035]
[1732061351864,10.20817167,237.41,237.31,1.2797]
[1732061352166,2.1034,237.34,237.28,2.1039]
[1732061352467,4.23376738,237.43,237.23,13.88407167]
[1732061352468,10.20817167,237.35,237.23,13.88407167]
[1732061352671,12.38817167,237.35,237.23,13.88407167]
[1732061352869,14.49157167,237.35,237.23,13.88407167]
[1732061353274,2.18,237.35,237.23,13.88407167]
[1732061354470,12.38817167,237.35,237.23,13.88407167]
[1732061354673,14.49147167,237.35,237.28,2.1039]
[1732061355066,2.18,237.4,237.26,10.20817167]
[1732061355272,2.103,237.39,237.26,10.20817167]
[1732061355473,2.18,237.4,237.26,10.20817167]
[1732061356068,10.20817167,237.41,237.26,10.20817167]
[1732061356271,2.18,237.41,237.29,10.20817167]
[1732061356476,2.18,237.41,237.29,12.38817167]
[1732061357171,2.18,237.41,237.37,2.1031]
[1732061357379,2.18,237.41,237.29,12.38817167]
[1732061358278,12.31067167,237.44,237.32,10.20817167]
[1732061358479,12.31067167,237.44,237.33,1.1795]
[1732061358681,233.77125735,237.54,237.36,10.20817167]
[1732061358876,2.1023,237.47,237.36,10.20817167]
[1732061359279,8.88333427,237.48,237.36,10.20817167]
[1732061359496,2.18,237.49,237.36,10.20817167]
[1732061360376,10.20817167,237.47,237.35,2.18]
[1732061360979,2.1025,237.44,237.39,2.1029]
[1732061362380,2.1025,237.44,237.4,2.1028]
[1732061362580,10.20817167,237.47,237.4,2.1028]
[1732061362782,2.1024,237.46,237.4,2.1028]
[1732061363083,10.20817167,237.47,237.34,2.5004]
[1732061363280,14.8,237.49,237.36,10.20817167]
[1732061363877,2.1022,237.47,237.42,2.1026]
[1732061365379,2.1023,237.46,237.42,2.1026]
[1732061367185,10.20817167,237.5,237.36,10.20817167]
[1732061367383,2.37,237.52,237.39,10.20817167]
[1732061367384,8.88489117,237.49,237.39,10.20817167]
[1732061367584,8.88489117,237.49,237.4,2.18]
[1732061367782,2.18,237.53,237.49,2.102]
[1732061368582,4.2817,237.53,237.49,2.102]
[1732061369182,2.18,237.53,237.49,2.102]
[1732061369390,10.20817167,237.52,237.46,2.1022]
[1732061369992,12.30997167,237.52,237.46,2.1022]
[1732061370294,12.30997167,237.52,237.47,2.1022]
[1732061370496,4.2817,237.53,237.43,1.2717]
[1732061371185,2.1018,237.52,237.46,2.1023]
[1732061371890,2.1018,237.52,237.47,2.1022]
[1732061372295,2.102,237.5,237.43,1.2717]
[1732061372993,2.102,237.5,237.45,2.1023]
[1732061375399,10.20817167,237.48,237.35,2.18]
[1732061375595,10.20817167,237.48,237.35,3.4272]
[1732061375797,2.18,237.47,237.35,1.2472]
[1732061375992,2.1023,237.46,237.41,2.1027]
[1732061376295,2.18,237.47,237.41,2.1027]
[1732061376593,2.18,237.47,237.43,2.1026]
[1732061377392,2.18,237.47,237.36,10.20817167]
[1732061377696,2.102,237.49,237.36,10.20817167]
[1732061377897,2.102,237.49,237.43,2.1025]
[1732061378091,2.102,237.49,237.36,10.20817167]
[1732061378695,2.1021,237.48,237.36,10.20817167]
[1732061379299,2.1021,237.48,237.43,2.1026]
[1732061380296,8.90056483,237.5,237.43,2.1026]
[1732061380600,2.102,237.49,237.43,2.1026]
[1732061381701,2.1021,237.48,237.4,2.1028]
[1732061381901,2.1021,237.48,237.36,10.20817167]
[1732061382201,2.1021,237.48,237.39,2.1029]
[1732061382408,8.90056483,237.5,237.42,10.20817167]
[1732061382698,10.20817167,237.53,237.4,2.18]
[1732061382997,8.91377956,237.52,237.4,2.18]
[1732061383398,2.102,237.49,237.44,2.1025]
[1732061383595,2.102,237.49,237.4,2.18]
[1732061383795,8.91377956,237.52,237.4,2.18]
[1732061384609,2.102,237.49,237.4,2.18]
[1732061384812,8.91377956,237.52,237.4,2.18]
[1732061385711,2.102,237.51,237.44,2.1025]
[1732061385912,8.91377956,237.52,237.44,2.1025]
[1732061386113,8.91377956,237.52,237.48,2.1021]
[1732061386313,8.91377956,237.51,237.42,10.20817167]
[1732061386627,2.18,237.55,237.42,10.20817167]
[1732061386807,2.1017,237.53,237.48,2.1021]
[1732061387011,11.01522462,237.53,237.48,2.1021]
[1732061387823,8.91352462,237.53,237.45,10.20817167]
[1732061388018,233.77125735,237.58,237.46,3.4612]
[1732061388313,8.9117295,237.57,237.46,5.9236]
[1732061388519,11.0130295,237.57,237.46,5.9236]
[1732061388913,2.1015,237.55,237.46,5.9236]
[1732061389110,14.46395088,237.55,237.46,5.9236]
[1732061389418,8.9117295,237.54,237.46,5.9236]
[1732061390314,10.20817167,237.55,237.46,5.9236]
[1732061390516,2.1012,237.59,237.46,5.9236]
[1732061390715,8.9059074,237.6,237.46,5.9236]
[1732061390919,19.11407907,237.6,237.46,5.9236]
[1732061391224,11.0071074,237.59,237.46,5.9236]
[1732061391717,11.0071074,237.59,237.52,2.1017]
[1732061392022,8.9059074,237.59,237.46,5.9236]
[1732061393014,10.20817167,237.57,237.46,5.9236]
[1732061393218,10.20817167,237.57,237.49,2.102]
[1732061393219,2.1015,237.55,237.49,2.102]
[1732061393418,11.0074074,237.55,237.49,2.102]
[1732061393622,2.1015,237.55,237.49,2.102]
[1732061394317,8.90066094,237.56,237.5,2.1019]
[1732061394519,8.90066094,237.56,237.48,10.20817167]
[1732061394723,2.18,237.6,237.52,2.1017]
[1732061394925,2.1013,237.57,237.46,5.9236]
[1732061396924,2.1013,237.57,237.51,2.1018]
[1732061398123,8.89892031,237.58,237.48,10.20817167]
[1732061398421,2.18,237.6,237.54,2.1015]
[1732061398616,8.89875568,237.59,237.54,2.1015]
[1732061399125,8.89875568,237.59,237.48,10.20817167]
[1732061399325,8.89875568,237.59,237.55,2.1015]
[1732061400216,8.89875568,237.59,237.48,10.20817167]
[1732061400217,8.89875568,237.59,237.56,2.1014]
[1732061400824,2.1011,237.6,237.56,2.1014]
[1732061401214,8.90206426,237.61,237.46,5.9236]
[1732061401421,19.11023593,237.6,237.46,5.9236]
[1732061401622,50.01741704,237.63,237.46,5.9236]
[1732061401623,8.90206426,237.59,237.48,10.20817167]
[1732061401824,60.22558871,237.63,237.48,10.20817167]
[1732061402025,8.90305681,237.62,237.48,10.20817167]
[1732061402725,6.52651944,237.6,237.52,6.52651944]
[1732061403923,8.62761944,237.6,237.55,2.1015]
[1732061405930,35.21741704,237.65,237.58,6.52651944]
[1732061406132,233.77125735,237.67,237.64,6.52651944]
[1732061406330,233.77125735,237.67,237.58,2.18]
[1732061406331,2.15288946,237.71,237.68,2.1003]
[1732061406629,8.89348042,237.7,237.64,2.18]
[1732061406831,233.77125735,237.79,237.69,10.18529471]
[1732061407131,18.9063155,237.78,237.73,2.0999]
[1732061409534,8.87386066,237.87,237.78,10.18529471]
[1732061409731,2.18,237.92,237.81,10.18529471]
[1732061409931,8.86212081,237.91,237.84,10.18529471]
[1732061410132,8.86212081,237.9,237.84,10.18529471]
[1732061410432,233.77125735,237.94,237.84,10.18529471]
[1732061410631,8.84602644,237.93,237.84,10.18529471]
[1732061410837,5.5117322,237.96,237.82,1.2941]
[1732061411035,8.84591897,237.95,237.82,1.2941]
[1732061411527,10.18529471,237.91,237.82,1.2941]
[1732061411725,2.18,237.9,237.77,10.18529471]
[1732061411928,2.0987,237.87,237.77,2.0995]
[1732061412127,10.18529471,237.85,237.73,2.18]
[1732061412333,10.18529471,237.82,237.73,2.18]
[1732061412731,12.28439471,237.82,237.74,2.0998]
[1732061412926,10.18529471,237.82,237.72,2.4152]
[1732061413127,27.13394166,237.84,237.72,2.4152]
[1732061413328,10.18529471,237.81,237.72,1.1979]
[1732061414135,22.80529471,237.81,237.65,10.18529471]
[1732061414334,12.62,237.76,237.62,1.1792]
[1732061414529,2.1,237.72,237.64,2.1006]
[1732061414835,2.18,237.73,237.62,13.54449471]
[1732061415025,2.18,237.73,237.65,2.1006]
[1732061415227,2.18,237.73,237.62,3.3592]
[1732061415736,10.18529471,237.71,237.56,10.18529471]
[1732061415930,10.18529471,237.68,237.56,10.18529471]
[1732061416135,2.1006,237.66,237.59,2.1011]
[1732061416333,2.18,237.67,237.55,2.3871]
[1732061416739,2.1007,237.64,237.57,2.1013]
[1732061416937,2.1007,237.64,237.55,1.1792]
[1732061417328,2.18,237.67,237.59,2.1011]
[1732061417526,2.18,237.67,237.56,10.18529471]
[1732061417735,2.18,237.67,237.55,1.1792]
[1732061418035,2.1007,237.64,237.56,2.1014]
[1732061419638,2.1011,237.6,237.51,2.1018]
[1732061419833,2.18,237.61,237.5,3.4233]
[1732061420133,2.18,237.6,237.5,2.18]
[1732061420436,2.18,237.6,237.46,2.18]
[1732061420637,2.1013,237.58,237.5,2.1019]
[1732061421032,2.18,237.6,237.5,2.1019]
[1732061421340,12.62,237.59,237.46,2.1023]
[1732061421736,14.69152021,237.59,237.46,2.1023]
[1732061422032,1.2473,237.59,237.42,18.49179468]
[1732061422431,16.31179468,237.58,237.42,2.18]
[1732061422636,28.93179468,237.58,237.38,1.2341]
[1732061422833,16.31179468,237.54,237.37,2.503]
[1732061423037,2.18,237.53,237.37,1.259]
[1732061423644,2.1018,237.52,237.45,2.1024]
[1732061424033,2.18,237.55,237.4,16.31179468]
[1732061424239,2.18,237.55,237.44,16.31179468]
[1732061426442,4.2814,237.57,237.48,2.1021]
[1732061426747,4.2814,237.57,237.44,18.49179468]
[1732061426938,2.18,237.61,237.48,16.31179468]
[1732061427238,2.18,237.61,237.49,1.2604]
[1732061427440,2.18,237.61,237.5,2.18]
[1732061427747,2.18,237.61,237.57,2.1013]
[1732061428745,2.5084,237.66,237.52,16.31179468]
[1732061428746,4.6884,237.66,237.52,16.31179468]
[1732061429335,2.1008,237.63,237.55,2.1015]
[1732061429636,17.3084,237.66,237.5,1.2324]
[1732061430039,2.1009,237.63,237.55,2.1015]
[1732061430646,17.3084,237.66,237.5,1.2324]
[1732061431546,2.1007,237.64,237.56,2.1014]
[1732061431838,17.3084,237.66,237.48,18.49179468]
[1732061432046,2.1006,237.65,237.58,2.1012]
[1732061432245,17.3084,237.66,237.48,18.49179468]
[1732061433346,2.1007,237.64,237.57,2.1013]
[1732061434238,2.1007,237.64,237.48,18.49179468]
[1732061434239,2.1002,237.7,237.63,2.1008]
[1732061434544,36.56758015,237.76,237.56,16.31179468]
[1732061434545,8.84595321,237.72,237.56,16.31179468]
[1732061434743,2.3963,237.75,237.57,3.6504]
[1732061435045,2.1,237.72,237.57,3.6504]
[1732061435442,2.18,237.74,237.57,3.6504]
[1732061436543,2.1003,237.69,237.61,2.1009]
[1732061436742,2.1003,237.69,237.57,3.6504]
[1732061436743,2.26,237.68,237.57,3.6504]
[1732061437339,2.3963,237.75,237.57,3.6504]
[1732061437543,4.6563,237.75,237.57,3.6504]
[1732061437946,2.0999,237.73,237.66,2.1005]
[1732061438745,2.26,237.73,237.68,2.1004]
[1732061439244,4.3599,237.73,237.68,2.1004]
[1732061439438,4.3599,237.73,237.63,2.1007]
[1732061439645,2.26,237.73,237.6,16.31179468]
[1732061439846,2.1002,237.7,237.57,3.6504]
[1732061440147,2.26,237.73,237.57,3.6504]
[1732061440848,2.07772084,237.72,237.57,3.6504]
[1732061441345,2.1003,237.69,237.63,2.1007]
[1732061441739,31.00951552,237.72,237.57,2.3771]
[1732061441940,28.93179468,237.68,237.57,1.1939]
[1732061442144,12.62,237.66,237.57,1.1939]
[1732061442740,12.62,237.66,237.48,16.31179468]
[1732061442941,12.62,237.63,237.49,1.1695]
[1732061444042,12.62,237.66,237.49,1.1695]
[1732061444446,2.1006,237.65,237.49,1.1695]
[1732061444746,12.62,237.66,237.49,1.1695]
[1732061444942,14.7205,237.67,237.52,16.31179468]
[1732061445148,2.26,237.68,237.53,2.26]
[1732061445343,2.26,237.68,237.56,16.31179468]
[1732061445849,2.26,237.68,237.63,2.1008]
[1732061447844,2.26,237.68,237.64,2.1007]
[1732061448263,2.26,237.68,237.56,16.31179468]
[1732061448551,2.26,237.68,237.54,2.3742]
[1732061448946,14.88,237.68,237.54,2.3742]
[1732061449449,2.1005,237.67,237.6,2.101]
[1732061449647,14.88,237.68,237.6,2.101]
[1732061450048,2.1006,237.65,237.59,2.1011]
[1732061450244,31.19179468,237.68,237.54,2.3742]
[1732061450546,12.62,237.66,237.49,1.1695]
[1732061450747,28.93179468,237.64,237.5,2.26]
[1732061451046,8.85729589,237.65,237.22,30.28]
[1732061451047,12.62,237.59,237.22,30.28]
[1732061451245,2.1017,237.53,237.42,1.2454]
[1732061451451,14.88,237.58,237.42,1.2454]
[1732061452048,12.62,237.55,237.45,2.1023]
[1732061452248,12.62,237.55,237.42,1.2454]
[1732061453453,2.1019,237.51,237.44,2.1025]
[1732061454245,2.102,237.5,237.42,1.2454]
[1732061455152,2.1022,237.47,237.4,2.1028]
[1732061455553,31.19179468,237.52,237.36,2.26]
[1732061456054,31.19179468,237.52,237.35,1.2902]
[1732061456055,12.62,237.47,237.35,1.2902]
[1732061456251,2.1027,237.42,237.35,2.1032]
[1732061456447,12.62,237.45,237.3,18.57179468]
[1732061456854,2.1025,237.44,237.37,2.1031]
[1732061457049,2.10585918,237.47,237.37,2.1031]
[1732061457249,28.93179468,237.47,237.3,18.57179468]
[1732061457454,2.10649037,237.46,237.3,16.31179468]
[1732061457855,12.62,237.46,237.29,1.2131]
[1732061458850,2.1027,237.42,237.29,1.2131]
[1732061459054,18.62371613,237.47,237.3,16.31179468]
[1732061459259,2.26,237.46,237.3,16.31179468]
[1732061459758,4.3623,237.46,237.3,16.31179468]
[1732061460058,2.26,237.46,237.3,16.31179468]
[1732061460352,2.26,237.46,237.37,2.103]
[1732061460556,2.26,237.46,237.29,1.2131]
[1732061460754,14.88,237.46,237.29,1.2131]
[1732061460951,2.1027,237.42,237.29,1.2131]
[1732061461153,14.88,237.46,237.29,1.2131]
[1732061461349,2.1028,237.41,237.32,2.1035]